fUSD/lending_fUSD_20250630
["ID","MTS","AMOUNT","RATE_DAILY","PERIOD"]
[368694233,1751302240115,-805.89,0.00013893,2]
[368694235,1751302240126,-490.0,0.00013893,2]
[368694237,1751302240136,-490.0,0.00013893,2]
[368694239,1751302240146,-6806.26,0.00013893,2]
[368694242,1751302240156,-924.96,0.00013893,2]
[368694244,1751302240166,-3546.85603718,0.00013893,2]
[368694246,1751302240179,-1403.15396282,0.00013893,2]
[368694248,1751302240189,-517.4,0.00013893,2]
[368694250,1751302240198,-698.65,0.00013893,2]
[368694252,1751302240207,-490.0,0.00013893,2]
[368694254,1751302240217,-2242.22,0.00013893,2]
[368694256,1751302240226,-3502.52,0.00013893,2]
[368694258,1751302240236,-490.0,0.00013893,2]
[368694260,1751302240245,-1527.18,0.00013893,2]
[368694262,1751302240254,-490.0,0.00013893,2]
[368694264,1751302240264,-2843.24,0.00013893,2]
[368694266,1751302240273,-490.0,0.00013893,2]
[368694268,1751302240283,-490.0,0.00013893,2]
[368694270,1751302240292,-500.0,0.00013893,2]
[368694272,1751302240302,-500.0,0.00013893,2]
[368694274,1751302240311,-490.0,0.00013893,2]
[368694276,1751302240320,-490.0,0.00013893,2]
[368694278,1751302240329,-865.72,0.00013893,2]
[368694280,1751302240339,-1017.77,0.00013893,2]
[368694282,1751302240348,-5086.1,0.00013893,2]
[368694284,1751302240357,-567.01876726,0.00013893,2]
[368694286,1751302240370,-1781.90123274,0.00013893,2]
[368694288,1751302240380,-490.0,0.00013893,2]
[368694290,1751302240392,-490.0,0.00013893,2]
[368694292,1751302240402,-490.0,0.00013893,2]
[368694294,1751302240412,-490.0,0.00013893,2]
[368694296,1751302240422,-1206.25,0.00013893,2]
[368694298,1751302240431,-490.0,0.00013893,2]
[368694300,1751302240441,-1547.49,0.00013893,2]
[368694302,1751302240450,-692.62,0.00013893,2]
[368694304,1751302240460,-2229.51,0.00013893,2]
[368694306,1751302240470,-2238.93,0.00013893,2]
[368694307,1751302240479,-526.85,0.00013893,2]
[368694310,1751302240489,-490.0,0.00013893,2]
[368694311,1751302240499,-872.14,0.00013893,2]
[368694313,1751302240509,-2115.2799616,0.00013893,2]
[368694332,1751302240676,-264.78649278,0.00013893,2]
[368694334,1751302240692,-692.53354562,0.00013893,2]
[368694336,1751302240702,-871.68,0.00013893,2]
[368694338,1751302240711,-170.64271091,0.00013893,2]
[368694557,1751302243340,-4403.46,0.00013892,2]
[368694558,1751302243350,-1056.07,0.00013892,2]
[368694559,1751302243361,-814.87728909,0.00013893,2]
[368694560,1751302243370,-2416.18,0.00013893,2]
[368694561,1751302243380,-200.0,0.00013893,2]
[368694563,1751302243392,-490.0,0.00013893,2]
[368694565,1751302243401,-2424.35,0.00013893,2]
[368694567,1751302243411,-1913.57,0.00013893,2]
[368694569,1751302243421,-490.0,0.00013893,2]
[368694572,1751302243430,-5874.29,0.00013893,2]
[368694574,1751302243440,-490.0,0.00013893,2]
[368694577,1751302243450,-2206.31,0.00013893,2]
[368694580,1751302243460,-2215.89,0.00013893,2]
[368694583,1751302243469,-490.0,0.00013893,2]
[368694587,1751302243479,-2005.17,0.00013893,2]
[368694591,1751302243489,-1131.15,0.00013893,2]
[368694593,1751302243498,-490.0,0.00013893,2]
[368694595,1751302243508,-490.0,0.00013893,2]
[368694597,1751302243518,-490.0,0.00013893,2]
[368694599,1751302243528,-1993.2,0.00013893,2]
[368694601,1751302243543,-490.0,0.00013893,2]
[368694603,1751302243553,-1403.93,0.00013893,2]
[368694605,1751302243563,-23146.85,0.00013893,2]
[368694607,1751302243573,-490.0,0.00013893,2]
[368694609,1751302243583,-490.0,0.00013893,2]
[368694613,1751302243593,-734.04,0.00013893,2]
[368694616,1751302243604,-1657.11,0.00013893,2]
[368694618,1751302243614,-490.0,0.00013893,2]
[368694620,1751302243625,-490.0,0.00013893,2]
[368694621,1751302243635,-490.0,0.00013893,2]
[368694622,1751302243648,-2220.11,0.00013893,2]
[368694623,1751302243658,-500.0,0.00013893,2]
[368694624,1751302243668,-490.0,0.00013893,2]
[368694625,1751302243677,-490.0,0.00013893,2]
[368694626,1751302243687,-500.0,0.00013893,2]
[368694627,1751302243701,-179.96792415,0.00013893,2]
[368694628,1751302243711,-245.24779549,0.00013893,2]
[368694629,1751302243721,-2017.23,0.00013893,2]
[368694630,1751302243733,-490.0,0.00013893,2]
[368694631,1751302243744,-772.0198632,0.00013894,2]
[368694632,1751302243754,-501.87,0.00013894,2]
[368694633,1751302243765,-490.0,0.00013894,2]
[368694634,1751302243775,-490.0,0.00013894,2]
[368694635,1751302243785,-182.96796,0.00013894,2]
[368694636,1751302243795,-490.0,0.00013894,2]
[368694637,1751302243805,-490.0,0.00013894,2]
[368694638,1751302243816,-490.0,0.00013894,2]
[368694639,1751302243826,-182.96796,0.00013894,2]
[368694640,1751302243835,-151.0,0.00013894,2]
[368694641,1751302243845,-882.525702,0.00013894,2]
[368694642,1751302243856,-490.0,0.00013894,2]
[368694643,1751302243867,-1344.72,0.00013894,2]
[368694644,1751302243877,-490.0,0.00013894,2]
[368694645,1751302243886,-500.0,0.00013894,2]
[368694646,1751302243897,-345.719645,0.00013894,2]
[368694647,1751302243907,-490.0,0.00013894,2]
[368694648,1751302243917,-490.0,0.00013894,2]
[368694649,1751302243926,-345.719645,0.00013894,2]
[368694650,1751302243936,-490.0,0.00013894,2]
[368694651,1751302243945,-490.0,0.00013894,2]
[368694652,1751302243955,-490.0,0.00013894,2]
[368694653,1751302243965,-2948.54,0.00013894,2]
[368694654,1751302243975,-490.0,0.00013894,2]
[368694655,1751302243987,-581.93,0.00013894,2]
[368694656,1751302243997,-490.0,0.00013894,2]
[368694657,1751302244007,-490.0,0.00013894,2]
[368694658,1751302244017,-490.0,0.00013894,2]
[368694659,1751302244026,-151.0,0.00013894,2]
[368694660,1751302244037,-490.0,0.00013894,2]
[368694661,1751302244047,-490.0,0.00013894,2]
[368694662,1751302244056,-490.0,0.00013894,2]
[368694663,1751302244066,-151.0,0.00013894,2]
[368694664,1751302244075,-490.0,0.00013894,2]
[368694665,1751302244085,-490.0,0.00013894,2]
[368694666,1751302244095,-490.0,0.00013894,2]
[368694667,1751302244105,-545.76041734,0.00013894,2]
[368694668,1751302244115,-490.0,0.00013894,2]
[368694669,1751302244125,-490.0,0.00013894,2]
[368694670,1751302244134,-1321.84,0.00013894,2]
[368694671,1751302244145,-490.0,0.00013894,2]
[368694672,1751302244154,-490.0,0.00013894,2]
[368694673,1751302244164,-490.0,0.00013894,2]
[368694674,1751302244174,-917.38,0.00013894,2]
[368694675,1751302244184,-490.0,0.00013894,2]
[368694676,1751302244193,-490.0,0.00013894,2]
[368694677,1751302244203,-490.0,0.00013894,2]
[368694678,1751302244213,-490.0,0.00013894,2]
[368694679,1751302244223,-1228.89,0.00013894,2]
[368694680,1751302244233,-490.0,0.00013894,2]
[368694681,1751302244242,-618.85,0.00013894,2]
[368694682,1751302244252,-941.73,0.00013894,2]
[368694683,1751302244262,-2123.54,0.00013894,2]
[368694684,1751302244272,-490.0,0.00013894,2]
[368694685,1751302244281,-490.0,0.00013894,2]
[368694686,1751302244292,-2035.4,0.00013894,2]
[368694687,1751302244302,-1048.38,0.00013894,2]
[368694688,1751302244312,-490.0,0.00013894,2]
[368694689,1751302244322,-490.0,0.00013894,2]
[368694690,1751302244334,-490.0,0.00013894,2]
[368694691,1751302244343,-2150.86,0.00013894,2]
[368694692,1751302244353,-502.13977881,0.00013894,2]
[368694693,1751302244362,-2501.23,0.00013894,2]
[368694694,1751302244373,-490.0,0.00013894,2]
[368694695,1751302244383,-490.0,0.00013894,2]
[368694696,1751302244393,-490.0,0.00013894,2]
[368694697,1751302244402,-490.0,0.00013894,2]
[368694698,1751302244412,-715.91,0.00013894,2]
[368694699,1751302244422,-610.83878873,0.00013894,2]
[368694700,1751302244432,-490.0,0.00013894,2]
[368694701,1751302244442,-490.0,0.00013894,2]
[368694702,1751302244451,-2916.07,0.00013894,2]
[368694703,1751302244461,-872.59,0.00013894,2]
[368694704,1751302244471,-842.26,0.00013894,2]
[368694705,1751302244481,-2074.16,0.00013894,2]
[368694706,1751302244491,-494.79,0.00013894,2]
[368694707,1751302244500,-832.97,0.00013894,2]
[368694708,1751302244510,-490.0,0.00013894,2]
[368694709,1751302244520,-2866.17,0.00013894,2]
[368694710,1751302244530,-548.16570748,0.00013894,2]
[368694711,1751302244540,-490.0,0.00013894,2]
[368694712,1751302244550,-826.27,0.00013894,2]
[368694713,1751302244559,-1650.07,0.00013894,2]
[368694714,1751302244570,-490.0,0.00013894,2]
[368694715,1751302244581,-490.0,0.00013894,2]
[368694716,1751302244591,-1107.7,0.00013894,2]
[368694717,1751302244601,-490.0,0.00013894,2]
[368694718,1751302244611,-490.0,0.00013894,2]
[368694719,1751302244622,-490.0,0.00013894,2]
[368694720,1751302244633,-490.0,0.00013894,2]
[368694721,1751302244643,-571.06,0.00013894,2]
[368694722,1751302244653,-490.0,0.00013894,2]
[368694723,1751302244663,-490.0,0.00013894,2]
[368694724,1751302244672,-490.0,0.00013894,2]
[368694725,1751302244682,-490.0,0.00013894,2]
[368694726,1751302244694,-528.54,0.00013894,2]
[368694727,1751302244703,-555.18,0.00013894,2]
[368694728,1751302244714,-490.0,0.00013894,2]
[368694729,1751302244724,-1793.94,0.00013894,2]
[368694730,1751302244734,-1178.11,0.00013894,2]
[368694731,1751302244745,-490.0,0.00013894,2]
[368694732,1751302244755,-490.0,0.00013894,2]
[368694733,1751302244766,-680.57,0.00013894,2]
[368694734,1751302244776,-490.0,0.00013894,2]
[368694735,1751302244785,-2180.74,0.00013894,2]
[368694736,1751302244795,-583.68,0.00013894,2]
[368694737,1751302244804,-500.0,0.00013894,2]
[368694738,1751302244814,-490.0,0.00013894,2]
[368694739,1751302244824,-490.0,0.00013894,2]
[368694740,1751302244834,-942.69,0.00013894,2]
[368694741,1751302244845,-490.0,0.00013894,2]
[368694742,1751302244854,-1964.38,0.00013894,2]
[368694743,1751302244864,-955.59,0.00013894,2]
[368694744,1751302244874,-490.0,0.00013894,2]
[368694745,1751302244883,-490.0,0.00013894,2]
[368694746,1751302244893,-3054.07,0.00013894,2]
[368694747,1751302244903,-1218.41,0.00013894,2]
[368694748,1751302244914,-490.0,0.00013894,2]
[368694749,1751302244924,-730.94,0.00013894,2]
[368694750,1751302244936,-490.0,0.00013894,2]
[368694751,1751302244946,-1331.47,0.00013894,2]
[368694752,1751302244957,-1008.53,0.00013894,2]
[368694753,1751302244966,-490.0,0.00013895,2]
[368694754,1751302244976,-493.17348298,0.00013895,2]
[368694755,1751302244986,-1325.58,0.00013895,2]
[368694756,1751302244998,-490.0,0.00013895,2]
[368694757,1751302245008,-490.0,0.00013895,2]
[368694758,1751302245018,-490.0,0.00013895,2]
[368694759,1751302245027,-490.0,0.00013895,2]
[368694760,1751302245037,-607.1,0.00013895,2]
[368694761,1751302245046,-554.57,0.00013895,2]
[368694762,1751302245055,-490.0,0.00013895,2]
[368694763,1751302245065,-490.0,0.00013895,2]
[368694764,1751302245074,-729.05,0.00013895,2]
[368694765,1751302245084,-490.0,0.00013895,2]
[368694766,1751302245094,-490.0,0.00013895,2]
[368694767,1751302245103,-1216.4,0.00013895,2]
[368694768,1751302245113,-490.0,0.00013895,2]
[368694769,1751302245122,-1148.23,0.00013895,2]
[368694770,1751302245132,-522.11,0.00013895,2]
[368694771,1751302245142,-490.0,0.00013895,2]
[368694772,1751302245152,-490.0,0.00013895,2]
[368694773,1751302245161,-490.0,0.00013895,2]
[368694774,1751302245171,-1498.88,0.00013895,2]
[368694775,1751302245180,-490.0,0.00013895,2]
[368694776,1751302245190,-490.0,0.00013895,2]
[368694777,1751302245200,-490.0,0.00013895,2]
[368694778,1751302245210,-532.58,0.00013895,2]
[368694779,1751302245220,-490.0,0.00013895,2]
[368694780,1751302245229,-840.61,0.00013895,2]
[368694781,1751302245239,-490.0,0.00013895,2]
[368694782,1751302245248,-564.26,0.00013895,2]
[368694783,1751302245258,-490.0,0.00013895,2]
[368694784,1751302245268,-490.0,0.00013895,2]
[368694785,1751302245278,-490.0,0.00013895,2]
[368694786,1751302245288,-490.0,0.00013895,2]
[368694787,1751302245298,-490.0,0.00013895,2]
[368694788,1751302245307,-490.0,0.00013895,2]
[368694789,1751302245317,-1369.67,0.00013895,2]
[368694790,1751302245327,-490.0,0.00013895,2]
[368694791,1751302245337,-490.0,0.00013895,2]
[368694792,1751302245348,-601.34,0.00013895,2]
[368694793,1751302245358,-490.0,0.00013895,2]
[368694794,1751302245368,-490.0,0.00013895,2]
[368694795,1751302245379,-490.0,0.00013895,2]
[368694796,1751302245389,-560.57,0.00013895,2]
[368694797,1751302245401,-490.0,0.00013895,2]
[368694798,1751302245412,-767.11,0.00013895,2]
[368694799,1751302245423,-951.69,0.00013895,2]
[368694802,1751302245435,-200.0,0.00013896,2]
[368694803,1751302245930,-589.1,0.00013896,2]
[368694804,1751302245941,-517.48,0.00013896,2]
[368694805,1751302245951,-637.44,0.00013896,2]
[368694806,1751302245960,-884.07,0.00013896,2]
[368694807,1751302245970,-490.0,0.00013896,2]
[368694808,1751302245980,-490.0,0.00013896,2]
[368694809,1751302245989,-490.0,0.00013896,2]
[368694810,1751302245999,-490.0,0.00013896,2]
[368694811,1751302246009,-245.97642495,0.00013896,2]
[368694812,1751302246019,-490.0,0.00013896,2]
[368694813,1751302246028,-490.0,0.00013896,2]
[368694814,1751302246038,-490.0,0.00013896,2]
[368694815,1751302246047,-151.0,0.00013896,2]
[368694816,1751302246058,-193.557847,0.00013896,2]
[368694817,1751302246067,-151.0,0.00013896,2]
[368694818,1751302246076,-193.557847,0.00013896,2]
[368694819,1751302246086,-490.0,0.00013896,2]
[368694820,1751302246096,-151.0,0.00013896,2]
[368694821,1751302246106,-151.0,0.00013896,2]
[368694822,1751302246115,-506.57,0.00013896,2]
[368694823,1751302246126,-621.45,0.00013896,2]
[368694824,1751302246136,-151.0,0.00013896,2]
[368694825,1751302246145,-239.58533,0.00013896,2]
[368694826,1751302246155,-151.0,0.00013896,2]
[368694827,1751302246165,-194.071796,0.00013896,2]
[368694828,1751302246175,-151.0,0.00013896,2]
[368694829,1751302246184,-194.071796,0.00013896,2]
[368694830,1751302246194,-151.0,0.00013896,2]
[368694831,1751302246205,-151.0,0.00013896,2]
[368694832,1751302246217,-229.937681,0.00013896,2]
[368694833,1751302246227,-229.937681,0.00013896,2]
[368694834,1751302246238,-154.045198,0.00013896,2]
[368694835,1751302246247,-830.43685,0.00013896,2]
[368694836,1751302246257,-500.0,0.00013896,2]
[368694837,1751302246267,-360.932985,0.00013896,2]
[368694838,1751302246277,-360.932985,0.00013896,2]
[368694839,1751302246286,-151.0,0.00013896,2]
[368694840,1751302246296,-151.0,0.00013896,2]
[368694841,1751302246306,-151.0,0.00013896,2]
[368694842,1751302246315,-151.0,0.00013896,2]
[368694843,1751302246326,-610.58505,0.00013896,2]
[368694844,1751302246336,-500.0,0.00013899,2]
[368694845,1751302246346,-527.05035662,0.00013899,2]
[368694846,1751302246356,-5000.0,0.000139,2]
[368694847,1751302246365,-160.52336173,0.000139,2]
[368694848,1751302246375,-189.23399232,0.000139,2]
[368694849,1751302246385,-189.23399213,0.000139,2]
[368694850,1751302246395,-189.23399213,0.000139,2]
[368694851,1751302246405,-189.23399213,0.000139,2]
[368694852,1751302246415,-189.23399213,0.000139,2]
[368694853,1751302246424,-263.23383539,0.000139,2]
[368694854,1751302246434,-189.23399213,0.000139,2]
[368694855,1751302246444,-189.23399213,0.000139,2]
[368694856,1751302246454,-189.23399213,0.000139,2]
[368694857,1751302246463,-189.23399213,0.000139,2]
[368694858,1751302246473,-354.49518154,0.000139,2]
[368694859,1751302246482,-189.23399213,0.000139,2]
[368694860,1751302246492,-189.23399213,0.000139,2]
[368694861,1751302246502,-1068.88,0.00013917,2]
[368694862,1751302246512,-151.0,0.00013918,2]
[368694863,1751302246522,-151.0,0.00013918,2]
[368694864,1751302246532,-151.0,0.00013918,2]
[368694865,1751302246541,-151.0,0.00013918,2]
[368694866,1751302246551,-153.498088,0.00013918,2]
[368694867,1751302246562,-151.0,0.00013918,2]
[368694868,1751302246572,-184.345086,0.00013918,2]
[368694869,1751302246582,-151.0,0.00013918,2]
[368694870,1751302246592,-151.0,0.00013918,2]
[368694871,1751302246603,-151.0,0.00013918,2]
[368694872,1751302246612,-151.0,0.00013918,2]
[368694873,1751302246622,-151.0,0.00013918,2]
[368694874,1751302246632,-368.2887,0.00013918,2]
[368694875,1751302246642,-151.0,0.00013918,2]
[368694876,1751302246652,-368.2887,0.00013918,2]
[368694877,1751302246663,-151.0,0.00013918,2]
[368694878,1751302246672,-151.0,0.00013918,2]
[368694879,1751302246685,-151.0,0.00013918,2]
[368694880,1751302246694,-151.0,0.00013918,2]
[368694881,1751302246704,-151.0,0.00013918,2]
[368694882,1751302246713,-221.933361,0.00013918,2]
[368694883,1751302246723,-221.933361,0.00013918,2]
[368694884,1751302246734,-882.525702,0.00013918,2]
[368694885,1751302246743,-182.96796,0.00013918,2]
[368694886,1751302246753,-182.96796,0.00013918,2]
[368694887,1751302246763,-220.23604,0.00013918,2]
[368694888,1751302246774,-882.525702,0.00013918,2]
[368694889,1751302246784,-345.719645,0.00013918,2]
[368694890,1751302246794,-345.719645,0.00013918,2]
[368694891,1751302246803,-188.866234,0.00013918,2]
[368694892,1751302246813,-835.8297818,0.00013927,2]
[368694893,1751302246822,-500.0,0.00013958,2]
[368694894,1751302246832,-490.0,0.00013958,2]
[368694895,1751302246842,-490.0,0.00013958,2]
[368694896,1751302246851,-490.0,0.00013958,2]
[368694897,1751302246861,-932.93,0.00013958,2]
[368694898,1751302246871,-151.0,0.00013959,2]
[368694899,1751302246880,-151.885998,0.00013959,2]
[368694900,1751302246889,-151.0,0.00013959,2]
[368694901,1751302246899,-151.0,0.00013959,2]
[368694902,1751302246908,-151.0,0.00013959,2]
[368694903,1751302246918,-151.0,0.00013959,2]
[368694904,1751302246927,-151.0,0.00013959,2]
[368694905,1751302246937,-156.324627,0.00013959,2]
[368694906,1751302246951,-151.0,0.00013959,2]
[368694907,1751302246963,-151.0,0.00013959,2]
[368694908,1751302246972,-251.0,0.00013959,2]
[368694909,1751302246982,-490.0,0.00013959,2]
[368694910,1751302246991,-546.75,0.00013959,2]
[368694911,1751302247001,-890.9,0.00013959,2]
[368694912,1751302247011,-1106.03,0.00013959,2]
[368694913,1751302247020,-2587.38,0.00013959,2]
[368694914,1751302247030,-2147.25,0.00013959,2]
[368694915,1751302247040,-2743.67,0.00013959,2]
[368694916,1751302247049,-490.0,0.00013959,2]
[368694917,1751302247059,-1328.68,0.00013959,2]
[368694918,1751302247068,-673.29,0.00013959,2]
[368694919,1751302247078,-151.0,0.00013959,2]
[368694920,1751302247087,-2210.35,0.00013959,2]
[368694921,1751302247096,-151.0,0.00013959,2]
[368694922,1751302247107,-500.0,0.00013959,2]
[368694923,1751302247116,-1845.39,0.00013959,2]
[368694924,1751302247126,-490.0,0.00013959,2]
[368694925,1751302247136,-671.33,0.00013959,2]
[368694926,1751302247146,-628.96,0.00013959,2]
[368694927,1751302247156,-490.0,0.00013959,2]
[368694928,1751302247166,-500.0,0.00013969,2]
[368694929,1751302247175,-501.98368603,0.00013973,2]
[368694930,1751302247185,-500.0,0.00013973,2]
[368694931,1751302247195,-500.0,0.00013973,2]
[368694932,1751302247205,-500.0,0.00013973,2]
[368694933,1751302247214,-500.0,0.00013973,2]
[368694934,1751302247223,-151.0,0.00013987,2]
[368694935,1751302247233,-150.0,0.00013987,2]
[368694936,1751302247242,-150.0,0.00013987,2]
[368694937,1751302247252,-150.0,0.00013987,2]
[368694938,1751302247262,-1648.0,0.00013987,2]
[368694939,1751302247271,-150.0,0.00013987,2]
[368694940,1751302247281,-150.0,0.00013987,2]
[368694941,1751302247290,-150.0,0.00013987,2]
[368694942,1751302247300,-500.0,0.00013987,2]
[368694943,1751302247310,-3896.0,0.00013987,2]
[368694944,1751302247320,-154.55479508,0.00013987,2]
[368694945,1751302247329,-150.0,0.00013987,2]
[368694946,1751302247339,-150.0,0.00013987,2]
[368694947,1751302247349,-150.0,0.00013987,2]
[368694948,1751302247359,-150.0,0.00013987,2]
[368694949,1751302247369,-529.0,0.00013987,2]
[368694950,1751302247378,-500.0,0.00013987,2]
[368694951,1751302247390,-150.0,0.00013987,2]
[368694952,1751302247401,-150.0,0.00013987,2]
[368694953,1751302247411,-500.0,0.00013987,2]
[368694954,1751302247420,-500.0,0.00013987,2]
[368694955,1751302247430,-150.0,0.00013987,2]
[368694956,1751302247440,-150.0,0.00013987,2]
[368694957,1751302247450,-500.0,0.00013987,2]
[368694958,1751302247459,-150.0,0.00013987,2]
[368694959,1751302247469,-500.0,0.00013987,2]
[368694960,1751302247478,-603.0,0.00013987,2]
[368694961,1751302247488,-170.0,0.0001399,2]
[368694962,1751302247497,-500.0,0.00013991,2]
[368694963,1751302247507,-211.01846175,0.00013992,2]
[368694964,1751302247517,-4632.28338714,0.00013992,2]
[368694965,1751302248659,-252.65390629,0.00013893,2]
[368694966,1751302248681,-237.34609371,0.00013893,2]
[368694967,1751302248696,-189.23399213,0.000139,2]
[368694968,1751302248706,-0.52243008,0.00013958,2]
[368694969,1751302248717,-489.47756992,0.00013958,2]
[368694970,1751302248729,-138.92243008,0.00013992,2]
[368694971,1751302269197,500.0,0.00013069,2]
[368694972,1751302273587,-705.0,0.00013749,2]
[368694973,1751302273618,-1422.69,0.00013892,2]
[368694974,1751302273649,-490.0,0.00013892,2]
[368694975,1751302273680,-1150.41,0.00013892,2]
[368694976,1751302273714,-742.82,0.00013892,2]
[368694977,1751302273744,-1794.49,0.00013892,2]
[368694978,1751302273776,-1516.14,0.00013892,2]
[368694979,1751302273808,-490.0,0.00013892,2]
[368694980,1751302273839,-239.09,0.00013893,2]
[368694981,1751302273980,-2898.72,0.00013893,2]
[368694982,1751302274010,-2060.06,0.00013893,2]
[368694983,1751302274042,-490.0,0.00013893,2]
[368694984,1751302274072,-490.0,0.00013893,2]
[368694985,1751302274103,-1794.75,0.00013893,2]
[368694986,1751302274134,-819.64,0.00013893,2]
[368694987,1751302275069,-2893.66,0.00013893,2]
[368694988,1751302275098,-490.0,0.00013893,2]
[368694989,1751302275127,-1390.58,0.00013893,2]
[368694990,1751302275157,-2264.37,0.00013893,2]
[368694991,1751302275188,-704.73,0.00013893,2]
[368694992,1751302275217,-1350.7,0.00013893,2]
[368694993,1751302275247,-567.31,0.00013893,2]
[368694994,1751302275444,-2015.31,0.00013893,2]
[368694995,1751302275474,-654.94,0.00013893,2]
[368694996,1751302276162,-499.39,0.00013893,2]
[368694997,1751302276188,-704.73,0.00013893,2]
[368694998,1751302276207,-1350.7,0.00013893,2]
[368694999,1751302276227,-567.31,0.00013893,2]
[368695000,1751302276269,-677.3,0.00013893,2]
[368695001,1751302276334,-2015.31,0.00013893,2]
[368695002,1751302276349,-654.94,0.00013893,2]
[368695003,1751302276374,-14659.5,0.00013893,2]
[368695004,1751302276439,-7818.0,0.00013893,2]
[368695005,1751302276470,-1899.83,0.00013893,2]
[368695006,1751302276508,-564.34,0.00013893,2]
[368695007,1751302276518,-1627.11,0.00013893,2]
[368695008,1751302276528,-1828.67,0.00013893,2]
[368695009,1751302276537,-2033.41,0.00013893,2]
[368695010,1751302276547,-564.24,0.00013893,2]
[368695011,1751302276558,-1075.85,0.00013893,2]
[368695012,1751302276568,-490.0,0.00013893,2]
[368695013,1751302276578,-1197.27,0.00013893,2]
[368695014,1751302276589,-901.28,0.00013893,2]
[368695015,1751302276616,-3220.79,0.00013893,2]
[368695016,1751302276626,-1552.61,0.00013893,2]
[368695017,1751302276635,-490.0,0.00013893,2]
[368695018,1751302276645,-154.984296,0.00013893,2]
[368695019,1751302276655,-490.0,0.00013894,2]
[368695020,1751302276666,-490.0,0.00013894,2]
[368695021,1751302276676,-490.0,0.00013894,2]
[368695022,1751302276686,-490.0,0.00013894,2]
[368695023,1751302276697,-490.0,0.00013894,2]
[368695024,1751302276708,-197.12693079,0.00013894,2]
[368695025,1751302276718,-490.0,0.00013894,2]
[368695026,1751302276727,-490.0,0.00013894,2]
[368695027,1751302276738,-687.03,0.00013894,2]
[368695028,1751302276749,-490.0,0.00013894,2]
[368695029,1751302276760,-853.78,0.00013894,2]
[368695030,1751302276771,-490.0,0.00013894,2]
[368695031,1751302276780,-490.0,0.00013894,2]
[368695032,1751302276790,-495.91,0.00013895,2]
[368695033,1751302276800,-610.88,0.00013895,2]
[368695034,1751302276810,-847.23,0.00013895,2]
[368695035,1751302276820,-189.23399213,0.000139,2]
[368695036,1751302276831,-189.23399213,0.000139,2]
[368695037,1751302276842,-189.23399213,0.000139,2]
[368695038,1751302276854,-189.23399213,0.000139,2]
[368695039,1751302277239,-189.23399213,0.000139,2]
[368695040,1751302277259,-189.23399213,0.000139,2]
[368695041,1751302277269,-490.0,0.00013958,2]
[368695042,1751302277279,-490.0,0.00013958,2]
[368695043,1751302277289,-1006.37,0.00013958,2]
[368695044,1751302277298,-2867.88482043,0.00013992,2]
[368695045,1751302277332,-9882.29966915,0.00013992,2]
[368695046,1751302277383,-10117.70033085,0.00013992,2]
[368695047,1751302277419,-20000.0,0.00013992,2]
[368695048,1751302277546,-20000.0,0.00013992,2]